bitfinex/quotes_BTCUSD_20241226
["timestamp","ask_amount","ask_price","bid_price","bid_amount"]
[1735239926619,0.360724,95820.0,95819.0,0.01032616]
[1735239926843,0.151,95820.0,95819.0,0.00132616]
[1735239927038,0.002,95820.0,95819.0,0.01032616]
[1735239927494,0.002,95820.0,95819.0,0.30105216]
[1735239927881,0.001,95820.0,95819.0,0.30005216]
[1735239928153,0.002,95820.0,95819.0,0.30105216]
[1735239928594,0.001,95820.0,95819.0,0.30005216]
[1735239928805,0.417388,95834.0,95819.0,0.29105216]
[1735239928974,0.002,95820.0,95819.0,0.30105216]
[1735239929355,0.208694,95834.0,95819.0,0.29105216]
[1735239929555,0.25956503,95834.0,95819.0,0.29105216]
[1735239929763,0.002,95820.0,95819.0,0.30105216]
[1735239929987,0.001,95820.0,95819.0,0.29205216]
[1735239930361,0.002,95820.0,95819.0,0.30105216]
[1735239931188,0.001,95820.0,95819.0,0.30005216]
[1735239931588,0.001,95820.0,95819.0,0.09232616]
[1735239931795,0.001,95820.0,95819.0,0.01032616]
[1735239932020,0.001,95820.0,95819.0,0.00932616]
[1735239932425,0.002,95820.0,95819.0,0.01032616]
[1735239932598,0.00893696,95820.0,95819.0,0.00132616]
[1735239932802,0.001,95820.0,95819.0,0.00132616]
[1735239933053,0.00993696,95820.0,95819.0,0.01032616]
[1735239933280,0.001,95820.0,95819.0,0.00932616]
[1735239933789,0.00893696,95820.0,95819.0,0.00932616]
[1735239933995,0.208704,95830.0,95819.0,0.00032616]
[1735239934208,0.208704,95830.0,95819.0,0.20905216]
[1735239934417,0.00793696,95829.0,95823.0,0.417434]
[1735239934632,0.00793696,95829.0,95828.0,0.208707]
[1735239934846,8.56e-05,95851.0,95845.0,0.208669]
[1735239935296,8.56e-05,95851.0,95830.0,0.09133135]
[1735239935529,8.56e-05,95851.0,95848.0,0.208662]
[1735239935810,8.56e-05,95851.0,95845.0,0.20867]
[1735239936034,8.56e-05,95851.0,95849.0,0.208659]
[1735239936875,8.56e-05,95851.0,95845.0,0.20867]
[1735239937048,0.0010856,95851.0,95845.0,0.21767]
[1735239937467,8.56e-05,95851.0,95845.0,0.20867]
[1735239937844,0.0010856,95851.0,95848.0,0.009]
[1735239938330,8.56e-05,95851.0,95845.0,0.20867]
[1735239938511,8.56e-05,95851.0,95838.0,0.208684]
[1735239938848,0.35248357,95850.0,95849.0,0.009]
[1735239939105,0.26115222,95850.0,95849.0,0.009]
[1735239939823,0.15,95848.0,95823.0,0.208716]
[1735239940035,0.208698,95832.0,95820.0,0.082]
[1735239940256,0.0208698,95831.0,95821.0,0.208722]
[1735239940461,0.208698,95832.0,95821.0,0.208722]
[1735239940826,0.00719651,95830.0,95821.0,0.208722]
[1735239941004,0.208698,95832.0,95821.0,0.208722]
[1735239941210,0.00719651,95829.0,95821.0,0.208722]
[1735239941410,0.208698,95832.0,95821.0,0.208722]
[1735239941714,0.00719651,95831.0,95821.0,0.208722]
[1735239942071,0.003,95830.0,95821.0,0.208722]
[1735239942409,0.208707,95828.0,95820.0,0.08215496]
[1735239942632,0.00719651,95829.0,95820.0,0.00015496]
[1735239942912,0.216698,95832.0,95821.0,0.001]
[1735239943127,0.00717841,95828.0,95820.0,0.20887896]
[1735239943255,0.003,95832.0,95820.0,0.20887896]
[1735239943494,0.005,95830.0,95822.0,0.20872]
[1735239943723,0.00717841,95829.0,95822.0,0.20872]
[1735239943924,0.208694,95834.0,95822.0,0.20872]
[1735239944126,0.208698,95832.0,95820.0,0.20887896]
[1735239944326,0.002,95828.0,95820.0,0.20887896]
[1735239944567,0.002,95828.0,95820.0,0.20987896]
[1735239944771,0.00717685,95827.0,95820.0,0.20987896]
[1735239945171,0.214706,95829.0,95820.0,0.00115496]
[1735239945549,0.00717685,95828.0,95820.0,0.00115496]
[1735239945986,0.002,95827.0,95821.0,0.208722]
[1735239946141,0.002,95827.0,95822.0,0.001]
[1735239946547,0.002,95827.0,95823.0,0.208718]
[1735239947125,0.208692,95835.0,95823.0,0.208718]
[1735239947325,0.002,95828.0,95820.0,0.00015496]
[1735239947541,0.006,95827.0,95822.0,0.001]
[1735239947746,0.00647547,95826.0,95821.0,0.208722]
[1735239948258,0.208695,95834.0,95821.0,0.208722]
[1735239948461,0.00647547,95825.0,95821.0,0.208722]
[1735239948666,0.208695,95834.0,95821.0,0.208722]
[1735239949114,0.002,95826.0,95823.0,0.001]
[1735239949410,0.002,95826.0,95821.0,0.208722]
[1735239949914,0.005,95825.0,95821.0,0.209722]
[1735239950128,0.002,95826.0,95821.0,0.208722]
[1735239950454,0.008,95826.0,95823.0,0.001]
[1735239950653,0.002,95826.0,95821.0,0.208722]
[1735239950807,0.208695,95834.0,95821.0,0.208722]
[1735239951005,0.006,95826.0,95821.0,0.209722]
[1735239952198,0.005,95826.0,95824.0,0.208714]
[1735239953076,0.005,95826.0,95821.0,0.208722]
[1735239953283,0.005,95826.0,95821.0,0.009]
[1735239953484,0.208714,95825.0,95820.0,0.00032616]
[1735239953626,0.208722,95822.0,95821.0,0.008]
[1735239954274,0.21520303,95822.0,95820.0,0.00032616]
[1735239954472,0.21520303,95822.0,95821.0,0.008]
[1735239954858,0.21520103,95822.0,95821.0,0.008]
[1735239955058,0.21520103,95822.0,95820.0,0.00032616]
[1735239955288,0.21620103,95822.0,95821.0,0.008]
[1735239955945,0.21620103,95822.0,95821.0,0.017]
[1735239956297,0.21620103,95822.0,95821.0,0.008]
[1735239956707,0.21620103,95822.0,95821.0,0.009]
[1735239956863,0.21520103,95822.0,95820.0,0.00032616]
[1735239957069,0.21620103,95822.0,95820.0,0.00832616]
[1735239957337,0.00848103,95822.0,95821.0,0.009]
[1735239957466,0.00648103,95822.0,95820.0,0.00032616]
[1735239957667,0.208712,95826.0,95820.0,0.00032616]
[1735239958016,0.002,95822.0,95821.0,0.017]
[1735239958308,0.001,95822.0,95821.0,0.009]
[1735239958777,0.0084637,95822.0,95821.0,0.009]
[1735239958984,0.002,95822.0,95821.0,0.009]
[1735239959125,0.0074637,95822.0,95820.0,0.00832616]
[1735239959528,0.0084637,95822.0,95821.0,0.009]
[1735239959935,0.0074637,95822.0,95821.0,0.009]
[1735239960146,0.0084637,95822.0,95821.0,0.015]
[1735239960785,0.0074637,95822.0,95821.0,0.006]
[1735239961202,0.001,95822.0,95821.0,0.009]
[1735239961546,0.002,95822.0,95821.0,0.015]
[1735239962285,0.0084637,95822.0,95821.0,0.015]
[1735239962504,0.0074637,95822.0,95821.0,0.006]
[1735239962906,0.0084637,95822.0,95821.0,0.015]
[1735239963143,0.208722,95821.0,95820.0,0.00032616]
[1735239963350,0.21517168,95821.0,95820.0,0.00032616]
[1735239964845,0.00644968,95821.0,95820.0,0.00032616]
[1735239965034,0.00744968,95821.0,95820.0,0.00732616]
[1735239965269,0.001,95821.0,95820.0,0.00732616]
[1735239965441,0.00744968,95821.0,95820.0,0.00732616]
[1735239965644,0.001,95821.0,95820.0,0.00732616]
[1735239965844,0.00844968,95821.0,95820.0,0.01632616]
[1735239966044,0.001,95821.0,95820.0,0.00732616]
[1735239966285,0.00744968,95821.0,95820.0,0.00732616]
[1735239966461,0.002,95821.0,95820.0,0.01632616]
[1735239966660,0.00844968,95821.0,95820.0,0.01632616]
[1735239966863,0.001,95821.0,95820.0,0.00932616]
[1735239967066,0.00744968,95821.0,95820.0,0.00932616]
[1735239967397,0.00844968,95821.0,95820.0,0.01632616]
[1735239967590,0.00844968,95821.0,95820.0,0.00732616]
[1735239967789,0.00844968,95821.0,95820.0,0.00032616]
[1735239967790,0.00644968,95821.0,95820.0,0.00032616]
[1735239967997,0.001,95821.0,95820.0,0.00732616]
[1735239968410,0.22483056,95821.0,95820.0,0.00732616]
[1735239968581,0.30163056,95821.0,95820.0,0.00732616]
[1735239968784,0.4580767,95821.0,95820.0,0.00732616]
[1735239968960,0.4590767,95821.0,95820.0,0.01632616]
[1735239969364,0.44396814,95821.0,95820.0,0.01632616]
[1735239970798,0.45457394,95821.0,95820.0,0.01632616]
[1735239973998,0.55856026,95821.0,95820.0,0.01632616]
[1735239974470,0.48176026,95821.0,95820.0,0.01632616]
[1735239975006,0.48076026,95821.0,95820.0,0.00932616]
[1735239975897,0.47976026,95821.0,95820.0,0.00032616]
[1735239976255,0.48176026,95821.0,95820.0,0.01432616]
[1735239976625,0.37677394,95821.0,95820.0,0.00532616]
[1735239976834,0.37677394,95821.0,95820.0,0.00932616]
[1735239977031,0.37777394,95821.0,95820.0,0.01532616]
[1735239977250,0.37677394,95821.0,95820.0,0.00632616]
[1735239977473,0.37677394,95821.0,95820.0,0.00932616]
[1735239977905,0.37677394,95821.0,95820.0,0.00632616]
[1735239978282,0.43740785,95821.0,95820.0,0.00632616]
[1735239978492,0.54139417,95821.0,95820.0,0.00632616]
[1735239979178,0.54239417,95821.0,95820.0,0.01532616]
[1735239979533,0.54039417,95821.0,95820.0,0.00032616]
[1735239979763,0.48076026,95821.0,95820.0,0.00932616]
[1735239979964,0.48176026,95821.0,95820.0,0.01532616]
[1735239980544,0.58546026,95821.0,95820.0,0.01532616]
[1735239984092,0.1,95808.0,95800.0,0.0001712]
[1735239984406,0.2216,95820.0,95800.0,0.0001712]
[1735239984407,0.381766,95801.0,95800.0,0.0001712]
[1735239984546,0.48575232,95801.0,95800.0,0.0001712]
[1735239984751,0.49210689,95801.0,95800.0,0.0001712]
[1735239984952,0.59210689,95801.0,95800.0,0.0001712]
[1735239985153,0.82140689,95801.0,95800.0,2e-07]
[1735239985542,0.9460619,95801.0,95800.0,2e-07]
[1735239986488,0.9460619,95801.0,95800.0,0.0040002]
[1735239986845,0.9460619,95801.0,95800.0,2e-07]
[1735239987242,0.58182,95776.0,95775.0,6e-07]
[1735239987441,0.58182,95776.0,95755.0,0.0001712]
[1735239987442,0.558842,95766.0,95765.0,6e-07]
[1735239987663,0.458864,95756.0,95755.0,0.0001712]
[1735239987867,0.6225128,95756.0,95755.0,0.00015649]
[1735239988061,0.7041128,95756.0,95755.0,0.00015649]
[1735239988269,0.86061022,95756.0,95755.0,4.9e-07]
[1735239988487,0.8886845,95756.0,95755.0,4.9e-07]
[1735239988689,0.86061022,95756.0,95755.0,4.9e-07]
[1735239989301,0.57373726,95756.0,95755.0,4.9e-07]
[1735239989509,0.37561913,95756.0,95755.0,0.00400049]
[1735239990322,0.40599467,95756.0,95755.0,0.00400049]
[1735239990865,0.37561913,95756.0,95755.0,4.9e-07]
[1735239991314,0.15,95745.0,95733.0,0.04924249]
[1735239991489,0.20889,95744.0,95733.0,0.04936645]
[1735239991788,0.00605735,95744.0,95733.0,0.04936645]
[1735239992759,0.00605735,95744.0,95733.0,0.05836645]
[1735239992962,0.00705735,95744.0,95734.0,0.208912]
[1735239993348,0.00805735,95744.0,95734.0,0.208912]
[1735239993551,0.00705735,95744.0,95734.0,0.208912]
[1735239993978,0.00805735,95744.0,95734.0,0.208912]
[1735239994175,0.00805735,95744.0,95734.0,0.255412]
[1735239994782,0.00705735,95744.0,95734.0,0.255412]
[1735239994984,0.00805735,95744.0,95734.0,0.255412]
[1735239995159,0.00805735,95744.0,95738.0,0.208901]
[1735239995355,0.001,95744.0,95738.0,0.208901]
[1735239995762,0.002,95744.0,95734.0,0.264412]
[1735239996028,0.00606573,95743.0,95734.0,0.255412]
[1735239996177,0.00606573,95743.0,95738.0,0.208902]
[1735239996431,0.001,95744.0,95738.0,0.208902]
[1735239996620,0.001,95744.0,95735.0,0.20891]
[1735239996826,0.002,95744.0,95735.0,0.20891]
[1735239997025,0.00606573,95743.0,95735.0,0.20891]
[1735239997431,0.00606573,95743.0,95734.0,0.0465]
[1735239997627,0.00606573,95743.0,95733.0,0.04936645]
[1735239997628,0.02159487,95742.0,95733.0,0.00012396]
[1735239998032,0.208912,95734.0,95733.0,0.00012396]
[1735239998461,0.358912,95734.0,95733.0,0.00012396]
[1735239998634,0.5023239,95734.0,95733.0,0.00012396]
[1735239998837,0.53269944,95734.0,95733.0,0.00012396]
[1735239999076,0.63668576,95734.0,95733.0,0.00012396]
[1735239999267,0.63768576,95734.0,95733.0,0.00912396]
[1735239999429,0.63668576,95734.0,95733.0,0.00012396]
[1735239999941,0.63768576,95734.0,95733.0,0.00012396]
[1735240000686,0.63868576,95734.0,95733.0,0.00912396]
[1735240002013,0.63768576,95734.0,95733.0,0.00920966]
[1735240002441,0.66575985,95734.0,95733.0,0.00920966]
[1735240002665,0.63868576,95734.0,95733.0,0.00920966]
[1735240002837,0.63768576,95734.0,95733.0,0.00020966]
[1735240003217,0.63868576,95734.0,95733.0,0.00720966]
[1735240004533,0.73868576,95734.0,95733.0,0.00720966]
[1735240004901,0.76675985,95734.0,95733.0,0.00720966]
[1735240005416,0.84595985,95734.0,95733.0,0.00720966]
[1735240007590,0.81788576,95734.0,95733.0,0.00720966]
[1735240008444,0.84595985,95734.0,95733.0,0.00720966]
[1735240009146,0.81788576,95734.0,95733.0,0.00720966]
[1735240010483,0.91788576,95734.0,95733.0,0.00720966]
[1735240011516,0.88751022,95734.0,95733.0,0.00720966]
[1735240011842,0.35896,95712.0,95711.0,0.0002]
[1735240012046,0.49784887,95712.0,95711.0,0.00035485]
[1735240012246,0.50378884,95712.0,95711.0,0.00035485]
[1735240013488,0.50478884,95712.0,95711.0,0.00735485]
[1735240014265,0.50578884,95712.0,95711.0,0.00735485]
[1735240015640,0.70798884,95712.0,95711.0,0.00735485]
[1735240015870,0.358975,95705.0,95704.0,0.0001712]
[1735240016073,0.58596132,95705.0,95704.0,0.0001712]
[1735240016274,0.59188523,95705.0,95704.0,0.0001712]
[1735240017052,0.59288523,95705.0,95704.0,0.0001712]
[1735240018852,0.59388523,95705.0,95704.0,0.0001712]
[1735240019069,0.6154801,95705.0,95704.0,0.0001712]
[1735240019484,0.7154801,95705.0,95704.0,0.0001712]
[1735240019868,0.7144801,95705.0,95704.0,0.0001712]
[1735240020686,0.7134801,95705.0,95704.0,0.0001712]
[1735240021813,0.1,95698.0,95672.0,0.0040712]
[1735240021972,0.20898193,95678.0,95672.0,0.00458767]
[1735240022173,0.00581197,95677.0,95672.0,0.00458767]
[1735240022575,0.209038,95676.0,95672.0,0.00458767]
[1735240022986,0.00581197,95675.0,95672.0,0.00458767]
[1735240023184,0.209043,95674.0,95672.0,0.00458767]
[1735240023483,0.15,95673.0,95672.0,0.00051647]
[1735240023835,0.15581197,95673.0,95672.0,0.00051647]
[1735240024529,0.15581197,95673.0,95672.0,0.00060227]
[1735240024747,0.15781197,95673.0,95672.0,0.00060227]
[1735240024906,0.15681197,95673.0,95672.0,0.00060227]
[1735240025319,0.15581197,95673.0,95672.0,0.00060227]
[1735240025667,0.15681197,95673.0,95672.0,0.00060227]
[1735240027011,0.15781197,95673.0,95672.0,0.00060227]
[1735240027220,0.15681197,95673.0,95672.0,0.00060227]
[1735240027422,0.15581197,95673.0,95672.0,0.00060227]
[1735240027575,0.15681197,95673.0,95672.0,0.00060227]
[1735240027776,0.26179829,95673.0,95672.0,0.00060227]
[1735240028790,0.26079829,95673.0,95672.0,0.00060227]
[1735240030145,0.35066301,95673.0,95672.0,0.00060227]
[1735240030398,0.34966301,95673.0,95672.0,0.00060227]
[1735240030598,0.35066301,95673.0,95672.0,0.00060227]
[1735240030822,0.35166301,95673.0,95672.0,0.00060227]
[1735240031093,0.37366301,95673.0,95672.0,0.00060227]
[1735240031298,0.0794,95656.0,95642.0,8.56e-05]
[1735240031499,0.15,95644.0,95642.0,0.00014509]
[1735240031735,0.46309632,95643.0,95642.0,0.00014509]
[1735240032143,0.49177736,95643.0,95642.0,0.00014509]
[1735240032348,0.5618658,95643.0,95642.0,0.00014509]
[1735240033111,0.6428658,95643.0,95642.0,0.00014509]
[1735240033917,0.65442116,95643.0,95642.0,0.00014509]
[1735240034404,0.65342116,95643.0,95642.0,0.00014509]
[1735240034626,0.67435986,95643.0,95642.0,0.00014509]
[1735240035346,0.77435986,95643.0,95642.0,0.00014509]
[1735240038746,0.77535986,95643.0,95642.0,0.00014509]
[1735240039851,0.87535986,95643.0,95642.0,0.00014509]
[1735240039978,0.459121,95638.0,95637.0,8.56e-05]
[1735240040186,0.59296735,95638.0,95637.0,0.00014509]
[1735240040384,0.77396735,95638.0,95637.0,0.00014509]
[1735240040796,0.82376735,95638.0,95637.0,0.00014509]
[1735240041217,0.82576735,95638.0,95637.0,0.00014509]
[1735240041421,0.84806735,95638.0,95637.0,0.00014509]
[1735240041890,0.582135,95632.0,95598.0,0.0479]
[1735240042061,0.68612132,95632.0,95631.0,0.00029742]
[1735240042265,0.69296708,95632.0,95631.0,0.00029742]
[1735240042811,0.77396708,95632.0,95631.0,0.00029742]
[1735240043021,0.66317,95616.0,95591.0,0.0002]
[1735240043222,0.76715632,95616.0,95615.0,0.00013977]
[1735240043423,0.7738949,95616.0,95615.0,0.00013977]
[1735240044022,0.7748949,95616.0,95615.0,0.00013977]
[1735240044654,0.7738949,95616.0,95615.0,0.00013977]
[1735240044861,0.84698334,95616.0,95615.0,0.00013977]
[1735240045055,0.84398334,95616.0,95615.0,0.00013977]
[1735240045492,0.89678334,95616.0,95615.0,0.00013977]
[1735240045723,0.89378334,95616.0,95615.0,0.00013977]
[1735240045921,0.89778334,95616.0,95615.0,0.00013977]
[1735240046143,0.1,95603.0,95563.0,0.19815087]
[1735240046347,0.09133135,95580.0,95562.0,0.209288]
[1735240046545,0.09133135,95580.0,95563.0,0.00051572]
[1735240046992,0.00672596,95579.0,95563.0,0.00051572]
[1735240047190,0.09133135,95580.0,95563.0,0.00051572]
[1735240047495,0.02902596,95579.0,95563.0,0.00051572]
[1735240047701,0.02902596,95579.0,95563.0,0.20980072]
[1735240048006,0.09133135,95573.0,95563.0,0.00051572]
[1735240048212,0.19044545,95572.0,95563.0,0.00051572]
[1735240048545,0.209278,95567.0,95563.0,0.00051572]
[1735240048728,0.37260841,95566.0,95563.0,0.00051572]
[1735240048920,0.37914891,95566.0,95563.0,0.00051572]
[1735240049058,0.38132907,95566.0,95563.0,0.00051572]
[1735240049680,0.17205007,95566.0,95563.0,0.00051572]
[1735240050501,0.11270698,95566.0,95563.0,0.00051572]
[1735240050984,0.11370698,95566.0,95563.0,0.00051572]
[1735240051431,0.11152682,95566.0,95563.0,0.00051572]
[1735240051643,0.209281,95565.0,95563.0,0.00051572]
[1735240051800,0.10398632,95564.0,95563.0,0.00051572]
[1735240051993,0.13637796,95564.0,95563.0,0.00051572]
[1735240052197,0.14503302,95564.0,95563.0,0.00051572]
[1735240053994,0.00865506,95564.0,95563.0,0.00051572]
[1735240054215,0.00965506,95564.0,95563.0,0.00051572]
[1735240054433,0.02017632,95564.0,95563.0,0.00051572]
[1735240054605,0.11464138,95564.0,95563.0,0.00051572]
[1735240054780,0.11247761,95564.0,95563.0,0.00051572]
[1735240054943,0.14681428,95564.0,95563.0,0.00051572]
[1735240055774,0.14581428,95564.0,95563.0,0.00051572]
[1735240056217,0.14481428,95564.0,95563.0,0.00051572]
[1735240056418,0.14581428,95564.0,95563.0,0.00051572]
[1735240056901,0.11363942,95564.0,95563.0,0.00051572]
[1735240057321,0.11463942,95564.0,95563.0,0.00051572]
[1735240057953,0.11263942,95564.0,95563.0,0.00051572]
[1735240058373,0.19343942,95564.0,95563.0,0.00051572]
[1735240058579,0.19243942,95564.0,95563.0,0.00051572]
[1735240058778,0.25353806,95564.0,95563.0,0.00051572]
[1735240058975,0.25453806,95564.0,95563.0,0.00051572]
[1735240059646,0.45213806,95564.0,95563.0,0.00051572]
[1735240059860,0.40553806,95564.0,95563.0,0.00051572]
[1735240060066,0.25553806,95564.0,95563.0,0.00051572]
[1735240060266,0.25453806,95564.0,95563.0,0.00051572]
[1735240060505,0.25353806,95564.0,95563.0,0.00060142]
[1735240060745,0.25453806,95564.0,95563.0,0.00060142]
[1735240061166,0.25453806,95564.0,95518.0,0.15]
[1735240061362,0.14945727,95563.0,95550.0,0.09133135]
[1735240061657,0.00851405,95562.0,95550.0,0.09133135]
[1735240061863,0.10398632,95561.0,95550.0,0.09133135]
[1735240062501,0.00851405,95560.0,95550.0,0.09133135]
[1735240062701,0.10398632,95559.0,95550.0,0.09133135]
[1735240063300,0.00851405,95558.0,95550.0,0.09133135]
[1735240063476,0.10398632,95557.0,95550.0,0.09133135]
[1735240064213,0.00851405,95556.0,95555.0,0.209303]
[1735240064385,0.002,95559.0,95555.0,0.209303]
[1735240064650,0.001,95559.0,95552.0,0.20931]
[1735240064784,0.001,95557.0,95552.0,0.20931]
[1735240065918,0.001,95557.0,95551.0,0.0495]
[1735240066120,0.00051505,95564.0,95548.0,0.209318]
[1735240066320,0.001,95559.0,95555.0,0.005]
[1735240066845,0.00051505,95564.0,95554.0,0.09133135]
[1735240066846,0.001,95557.0,95554.0,0.09133135]
[1735240067043,0.001,95557.0,95552.0,0.209308]
[1735240067246,0.002,95557.0,95552.0,0.209308]
[1735240067705,0.001,95557.0,95550.0,0.09133135]
[1735240068039,0.002,95557.0,95554.0,0.007]
[1735240068249,0.001,95557.0,95554.0,0.007]
[1735240069039,0.001,95557.0,95555.0,0.006]
[1735240069472,0.00051505,95564.0,95550.0,0.09133135]
[1735240069696,0.001,95557.0,95554.0,0.006]
[1735240070043,0.00051505,95564.0,95550.0,0.09133135]
[1735240070270,0.001,95557.0,95552.0,0.21431]
[1735240070676,0.00051505,95564.0,95552.0,0.20931]
[1735240070834,0.001,95557.0,95554.0,0.005]
[1735240071036,0.001,95557.0,95555.0,0.209303]
[1735240071450,0.002,95557.0,95555.0,0.211303]
[1735240071656,0.001,95557.0,95555.0,0.209303]
[1735240072177,0.002,95557.0,95555.0,0.209303]
[1735240072372,0.001,95557.0,95555.0,0.209303]
[1735240072605,0.00051505,95564.0,95559.0,0.209294]
[1735240072791,0.00151505,95564.0,95559.0,0.209294]
[1735240073207,0.00151505,95564.0,95555.0,0.002]
[1735240073356,0.00051505,95564.0,95555.0,0.002]
[1735240073558,0.001,95557.0,95555.0,0.007]
[1735240074083,0.00051505,95564.0,95555.0,0.152]
[1735240074466,0.00151505,95564.0,95555.0,0.155]
[1735240074793,0.00800865,95563.0,95559.0,0.002]
[1735240074940,0.00151505,95564.0,95557.0,0.209297]
[1735240075347,0.00251505,95564.0,95557.0,0.209297]
[1735240075577,0.00051505,95564.0,95557.0,0.209297]
[1735240076013,0.001,95563.0,95559.0,0.002]
[1735240076194,0.001,95563.0,95555.0,0.155]
[1735240076394,0.001,95563.0,95555.0,0.15]
[1735240076745,0.00151505,95564.0,95557.0,0.214297]
[1735240076953,0.00151505,95564.0,95563.0,0.0771]
[1735240077171,0.00051505,95564.0,95563.0,0.0771]
[1735240078002,0.00051505,95564.0,95563.0,0.2747]
[1735240078170,0.00051505,95564.0,95563.0,0.92498632]
[1735240078608,0.00151505,95564.0,95563.0,0.92498632]
[1735240078817,0.00051505,95564.0,95563.0,0.92498632]
[1735240079040,0.0767,95616.0,95596.0,0.209213]
[1735240079245,0.0767,95616.0,95565.0,0.459281]
[1735240079246,0.11258401,95615.0,95600.0,0.209203]
[1735240079441,0.11258401,95615.0,95606.0,0.09133135]
[1735240080281,0.11258401,95615.0,95606.0,0.09138547]
[1735240080480,0.11758401,95615.0,95606.0,0.09138547]
[1735240080685,0.11758401,95615.0,95606.0,0.09438547]
[1735240080977,0.01359769,95615.0,95606.0,0.09438547]
[1735240081179,0.005,95615.0,95606.0,0.09438547]
[1735240081392,0.005,95615.0,95606.0,0.00305412]
[1735240081393,0.10398632,95614.0,95606.0,0.00305412]
[1735240081654,0.00859769,95613.0,95606.0,0.00305412]
[1735240081806,0.10398632,95612.0,95604.0,0.02138547]
[1735240082007,0.10398632,95612.0,95604.0,0.02154013]
[1735240082343,0.00859769,95611.0,95606.0,0.004]
[1735240082538,0.10398632,95610.0,95606.0,0.004]
[1735240082876,0.10398632,95610.0,95604.0,0.00015466]
[1735240083082,0.00859769,95609.0,95604.0,0.00315466]
[1735240083362,0.00859769,95609.0,95604.0,0.00615466]
[1735240083542,0.00859769,95609.0,95604.0,0.00315466]
[1735240083756,0.045,95621.0,95604.0,0.00015466]
[1735240083949,0.10398632,95620.0,95610.0,0.09133135]
[1735240084107,0.11272931,95620.0,95610.0,0.09133135]
[1735240084704,0.00874299,95620.0,95610.0,0.1826627]
[1735240084873,0.10398632,95619.0,95610.0,0.09133135]
[1735240085286,0.00874299,95618.0,95610.0,0.09133135]
[1735240085490,0.10398632,95617.0,95610.0,0.09133135]
[1735240085690,0.01127293,95616.0,95610.0,0.09133135]
[1735240085919,0.10398632,95615.0,95610.0,0.09133135]
[1735240086088,0.10398632,95615.0,95610.0,0.01833135]
[1735240086089,0.11272931,95615.0,95610.0,0.01833135]
[1735240086425,0.11272931,95615.0,95605.0,0.09133135]
[1735240086742,0.11272931,95615.0,95610.0,0.003]
[1735240086995,0.01240022,95614.0,95610.0,0.003]
[1735240087244,0.11638654,95614.0,95610.0,0.003]
[1735240087443,0.00874299,95613.0,95610.0,0.003]
[1735240087640,0.00874299,95613.0,95610.0,0.007]
[1735240087871,0.00874299,95613.0,95610.0,0.003]
[1735240088225,0.00874299,95613.0,95605.0,0.09133135]
[1735240089020,0.00874299,95613.0,95605.0,0.09533135]
[1735240089226,0.10398632,95614.0,95606.0,0.209191]
[1735240089431,0.10398632,95614.0,95605.0,0.09533135]
[1735240089657,0.10398632,95614.0,95605.0,0.09133135]
[1735240089827,0.10498632,95614.0,95610.0,0.006]
[1735240090031,0.11272931,95613.0,95610.0,0.006]
[1735240090236,0.045,95611.0,95605.0,0.005]
[1735240090465,0.10398632,95610.0,95605.0,0.005]
[1735240090615,0.11272931,95610.0,95606.0,0.007]
[1735240090815,0.11054356,95610.0,95605.0,0.005]
[1735240091027,0.02429305,95609.0,95591.0,0.1521533]
[1735240091230,0.10398632,95608.0,95578.0,0.1247]
[1735240091450,0.10398632,95608.0,95592.0,0.209222]
[1735240091657,0.10398632,95608.0,95606.0,0.004]
[1735240092105,0.00874299,95607.0,95606.0,0.004]
[1735240092423,0.13723927,95607.0,95606.0,0.004]
[1735240093001,0.13723927,95607.0,95597.0,0.09133135]
[1735240093202,0.10398632,95606.0,95597.0,0.09133135]
[1735240093657,0.00874299,95605.0,95597.0,0.09133135]
[1735240093942,0.10398632,95604.0,95597.0,0.09133135]
[1735240094089,0.01383939,95603.0,95597.0,0.09133135]
[1735240094285,0.10398632,95602.0,95592.0,0.209222]
[1735240094521,0.11272931,95602.0,95592.0,0.209222]
[1735240094693,0.11272931,95602.0,95597.0,0.009]
[1735240094907,0.11272931,95602.0,95592.0,0.209222]
[1735240095116,0.01510787,95601.0,95592.0,0.209222]
[1735240095324,0.10398632,95602.0,95592.0,0.209222]
[1735240095559,0.10398632,95602.0,95596.0,0.209213]
[1735240095975,0.00874299,95601.0,95596.0,0.209213]
[1735240096108,0.00874299,95601.0,95600.0,0.209205]
[1735240096560,0.001,95603.0,95600.0,0.41841]
[1735240096960,0.001,95602.0,95601.0,0.27644602]
[1735240097165,0.001,95602.0,95601.0,0.40238632]
[1735240097419,0.00015458,95610.0,95609.0,0.382185]
[1735240097620,5.8e-07,95610.0,95609.0,0.48617132]
[1735240097856,0.0001712,95647.0,95609.0,0.48617132]
[1735240097857,0.0001712,95647.0,95646.0,0.209104]
[1735240098091,0.00906948,95647.0,95646.0,0.209104]
[1735240098307,0.00688373,95647.0,95646.0,0.209104]
[1735240098523,0.00032649,95647.0,95646.0,0.209104]
[1735240098977,0.00032649,95647.0,95646.0,0.52582302]
[1735240099214,0.00032649,95647.0,95646.0,1.24616291]
[1735240099456,0.0001716,95655.0,95654.0,0.309086]
[1735240099693,6e-07,95655.0,95654.0,0.6088822]
[1735240099923,0.0001716,95678.0,95659.0,0.209075]
[1735240100120,0.0001716,95678.0,95659.0,0.5661394]
[1735240100320,0.0001716,95678.0,95677.0,0.209036]
[1735240100523,0.00068914,95678.0,95677.0,1.08868882]
[1735240101350,0.00268914,95678.0,95677.0,1.08968882]
[1735240101971,0.00268914,95678.0,95677.0,0.9627025]
[1735240102354,0.00155696,95678.0,95677.0,0.91688774]
[1735240102544,0.00155696,95678.0,95677.0,0.97337924]
[1735240102745,0.0457,95717.0,95688.0,0.209012]
[1735240102971,0.0003552,95689.0,95686.0,0.209016]
[1735240103285,0.0003552,95689.0,95686.0,0.418032]
[1735240103416,0.0003552,95689.0,95688.0,0.209012]
[1735240103618,0.0003552,95689.0,95688.0,0.2387367]
[1735240104230,0.0013552,95689.0,95688.0,0.209012]
[1735240104634,0.0003552,95689.0,95688.0,0.209012]
[1735240105251,0.0013552,95689.0,95688.0,0.209012]
[1735240105657,0.0003552,95689.0,95688.0,0.209012]
[1735240106033,0.0013552,95689.0,95688.0,0.218012]
[1735240106438,0.0023552,95689.0,95688.0,0.226012]
[1735240107681,0.0013552,95689.0,95688.0,0.218012]
[1735240107855,0.0003552,95689.0,95688.0,0.209012]
[1735240108062,0.0457,95717.0,95694.0,0.208999]